[Event "Marmaris Icmeler-IM May 2022"]
[Site "Icmeler"]
[Date "2022.05.07"]
[Round "5.1"]
[White "Hereklioglu, Sude"]
[Black "Toufighi, Homayoon"]
[Result "0-1"]
[ECO "A37"]
[WhiteElo "1918"]
[BlackElo "2439"]
[Annotator "TA"]
[PlyCount "124"]
[EventDate "2022.05.05"]
[EventType "schev"]
[EventCountry "TUR"]
[SourceTitle "playchess.com"]
[Source "ChessBase"]
[SourceQuality "1"]
[TimeControl "5400+30"]

{[%evp 15,124,-13,-8,-23,-32,-41,-39,-53,-35,-77,-22,-16,-11,-41,-43,-41,-41,-64,-46,-50,-5,-10,-5,-41,-31,-77,-73,-76,-58,-63,-19,-58,-39,-56,-56,-90,-68,-76,-76,-96,-76,-81,-38,-38,-38,-45,-38,-38,-38,-84,-81,-81,-77,-99,0,-93,-38,-46,-18,-156,-156,-156,-156,-156,-156,-156,-156,-156,-156,-156,-156,-156,-156,-156,-156,-156,-106,-120,-120,-156,-156,-156,-156,-156,-156,-160,-165,-278,-286,-473,-426,-525,-139,-629,-321,-1031,-993,-2272,-2477,-2313,-2290,-1955,-1934,-29993,-29994,-29994,-29995,-29996,-29997,-29997,-29998]} 1. e4 {[%emt 0:31:00]} e5 {[%emt 0:23:00]} 2. c4 {[%emt 0:00:30]} d6 {[%emt 0:00:30]} 3. d3 {[%emt 0:00:30]} c5 {[%emt 0:00:30]} 4. Nc3 {[%emt 0:00:30]} Nc6 {[%emt 0:00:30]} 5. g3 {[%emt 0:00:30]} g6 {[%emt 0:00:30]} 6. Nf3 {[%emt 0:00:30]} Bg7 {[%emt 0:00:30]} 7. Bg2 {[%emt 0:00:30]} Nge7 {[%emt 0:00:30]} 8. O-O {[%emt 0:00:30]} O-O {[%emt 0:00:30]} 9. Bd2 {[%emt 0:00:30] A37: Symmetrical English vs ...g6: 4 Bg2 Bg7 5 Nf3.} f5 {[%emt 0:00:30]} 10. Nd5 {[%emt 0:00:30]} f4 {[%emt 0:00:30] [#]} 11. a3 $146 {[%emt 0:00:30] Black is slightly better.} ({Predecessor:} 11. Rb1 Bg4 12. h3 Bxf3 13. Bxf3 Nd4 14. g4 Nec6 15. Bc3 Ne6 16. Kg2 {0-1 (41) Koskoska,G (2050)-Lazov,T (2336) Struga 2016}) 11... Rb8 {[%emt 0:00:30]} 12. Rb1 {[%emt 0:00:30]} h6 {[%emt 0:00:30]} (12... Bg4 $17) 13. b4 $11 {[%emt 0:00:30]} g5 {[%emt 0:00:30][%cal Bg6g5,Bg5g4][%mdl 32]} 14. b5 {[%emt 0:00:30]} Nxd5 {[%emt 0:00:30]} 15. exd5 {[%emt 0:00:30]} Ne7 {[%emt 0:00:30]} 16. Ne1 {[%emt 0:00:30]} g4 {[%emt 0:00:30]} 17. Be4 {[%emt 0:00:30]} Qe8 {[%emt 0:02:30]} 18. Ng2 {[%emt 0:05:30][%cal Rg3f4]} f3 {[%emt 0:00:30]} 19. Ne3 {[%emt 0:00:30]} Qh5 {[%emt 0:00:30]} 20. h4 {[%emt 0:00:30]} (20. Kh1 $15 {feels stronger.}) 20... Bf6 $17 {[%emt 0:00:30][%cal Of6h4]} 21. Kh2 {[%emt 0:12:30] [#]} Bxh4 $1 {[%emt 0:00:30]} 22. Rh1 $1 {[%emt 0:00:30] Hoping for Kg1.} (22. gxh4 Qxh4+ 23. Kg1 g3) 22... Bg5+ $1 {[%emt 0:00:30]} 23. Kg1 {[%emt 0:00:30]} Qf7 {[%emt 0:00:30]} 24. Qc1 {[%emt 0:00:30][%cal Oe3g4]} Qf6 {[%emt 0:00:30]} 25. Rh5 {[%emt 0:00:30][%cal Oe3g4] Strongly threatening Nxg4!} Rf7 {[%emt 0:01:30]} 26. a4 {[%emt 0:06:30]} Rg7 {[%emt 0:00:00]} 27. Kf1 {[%emt 0:07:30]} Qf7 {[%emt 0:02:00]} 28. Rh1 {[%emt 0:01:30]} Bd7 {[%emt 0:01:30]} 29. Ke1 {[%emt 0:00:30]} Kf8 {[%emt 0:03:30]} 30. Kd1 {[%emt 0:01:30]} Ng8 {[%emt 0:00:30][%cal Be7g8,Bg8f6,Bf6e4][%mdl 32]} 31. Kc2 {[%emt 0:05:30]} Nf6 {[%emt 0:01:30]} 32. Kb3 {[%emt 0:03:30]} (32. Nf1 $15) 32... Nxe4 {[%emt 0:00:30]} 33. dxe4 {[%emt 0:00:00]} Qg6 {[%emt 0:00:30]} 34. Qc2 {[%emt 0:01:00]} Kf7 {[%emt 0:00:30]} ({Better is} 34... Rh7 $17) 35. a5 {[%emt 0:01:29]} (35. Nf5 $11 {remains equal.}) 35... Rh8 {[%emt 0:00:30]} (35... h5 $17 36. Nf1 Bf6) 36. a6 {[%emt 0:08:48]} b6 {[%emt 0:00:30] Black wants to play ...h5.} 37. Rbg1 {[%emt 0:01:48]} (37. Nf5 $11) 37... h5 {[%emt 0:00:00]} 38. Nf1 {[%emt 0:02:50]} Bd8 {[%emt 0:00:00] Black is more active.} 39. Be3 {[%emt 0:00:46]} (39. Ne3 Rgh7 40. Nf5 h4 41. gxh4 Bxh4 42. Rxh4 Rxh4 43. Nxh4 Rxh4 $17) 39... Rgh7 {[%emt 0:00:30]} 40. Nd2 {[%emt 0:00:41]} Ke8 {[%emt 0:01:30]} 41. Qd3 {[%emt 0:00:52]} Qf7 {[%emt 0:00:30]} 42. Nf1 {[%emt 0:03:39]} Be7 {[%emt 0:00:30]} ({Not} 42... h4 43. gxh4 Bxh4 44. Qb1 $17) 43. Kb2 {[%emt 0:00:56]} Kd8 {[%emt 0:00:30]} ({Worse is} 43... h4 44. gxh4 Bxh4 45. Qd2 $17) 44. Kb3 {[%emt 0:00:12]} Qg8 {[%emt 0:00:30]} 45. Nd2 {[%emt 0:00:56]} Be8 {[%emt 0:00:30]} (45... Kc7 $142 46. Nf1 Kb8) 46. Kb2 {[%emt 0:01:36]} Bg6 {[%emt 0:00:00]} 47. Kb3 {[%emt 0:00:09]} h4 {[%emt 0:01:00]} 48. gxh4 {[%emt 0:00:38]} Rxh4 {[%emt 0:00:30]} 49. Rxh4 {[%emt 0:00:10]} Rxh4 {[%emt 0:00:00]} 50. Nf1 {[%emt 0:00:55]} Qh7 {[%emt 0:00:00]} 51. Ng3 {[%emt 0:00:07]} (51. Nd2 $142) 51... Rh2 $19 {[%emt 0:00:30]} 52. Bxc5 $2 {[%emt 0:00:52]} (52. Qb1) 52... bxc5 {[%emt 0:03:30]} ({Inferior is} 52... dxc5 53. d6 Bh4 54. Qd5 Bxg3 55. Qa8+ Kd7 56. Qc6+ Kd8 57. Qa8+ Kd7 58. Qc6+ Kd8 59. Qa8+ $11) 53. b6 {[%emt 0:00:10]} Bf8 $2 {[%emt 0:00:30]} (53... Rxf2 $2 54. bxa7 Bg5 55. a8=Q+ $18) (53... Bf6 $19 {and Black stays clearly on top.} 54. Qd2 axb6) 54. b7 $2 {[%emt 0:00:25][%mdl 8192] This move loses the game for White.} (54. Ra1 $17) 54... Qc7 {[%emt 0:01:30]} 55. Qd2 $2 {[%emt 0:01:40]} (55. Nh1) 55... Bh6 {[%emt 0:00:30]} 56. Qa2 {[%emt 0:00:46]} Qb6+ {[%emt 0:01:30]} 57. Kc3 {[%emt 0:00:15]} Qb4+ {[%emt 0:00:30]} 58. Kd3 {[%emt 0:00:04] [#]} Rxf2 $3 {[%emt 0:00:00][%mdl 512] ( -> ...Rd2+)} 59. Qa5+ {[%emt 0:00:43]} (59. b8=Q+ Qxb8) 59... Qxa5 {[%emt 0:00:00][%csl Ga5,Gh6][%cal Rf2d2] Black mates.} 60. b8=Q+ {[%emt 0:00:07]} Ke7 {[%emt 0:00:30][%csl Ga5,Gh6][%cal Rf2d2]} 61. Qb7+ {[%emt 0:00:51]} Kf6 {[%emt 0:00:00][%csl Ga5,Gh6][%cal Rf2d2]} 62. Nh5+ {[%emt 0:00:59]} Bxh5 {[%emt 0:00:00] Weighted Error Value: White=0.64/Black=0.22 (precise)} 0-1

[Event "Marmaris Icmeler-IM May 2022"]
[Site "Icmeler"]
[Date "2022.05.07"]
[Round "5.2"]
[White "Ince, Taylan Ruzgar"]
[Black "Huseyinoglu, Alihan"]
[Result "1-0"]
[ECO "D02"]
[WhiteElo "2018"]
[BlackElo "2278"]
[Annotator "TA"]
[PlyCount "103"]
[EventDate "2022.05.05"]
[EventType "schev"]
[EventCountry "TUR"]
[SourceTitle "playchess.com"]
[Source "ChessBase"]
[SourceQuality "1"]
[TimeControl "5400+30"]

{[%evp 9,103,-5,1,7,246,-22,45,61,67,41,41,36,73,39,53,44,41,49,63,46,63,52,144,155,207,220,179,137,179,142,120,122,162,91,88,88,99,102,110,102,77,78,71,80,70,76,85,77,79,80,191,195,203,204,224,72,233,229,225,227,218,219,218,205,205,205,205,205,205,205,198,198,198,198,401,401,760,741,1180,1095,916,902,12838,12838,12841,12839,12839,12839,12839,288,288,288,288,288,288,288]} 1. d4 {[%emt 0:18:00]} d5 {[%emt 0:34:00]} 2. g3 {[%emt 0:00:30]} b6 {[%emt 0:00:30]} 3. Bg2 {[%emt 0:00:30]} Nf6 {[%emt 0:00:30]} 4. Nf3 {[%emt 0:00:30]} Bb7 {[%emt 0:00:30]} 5. c4 {[%emt 0:00:30]} dxc4 {[%emt 0:00:30]} 6. Qa4+ {[%emt 0:00:30] D02: 1 d4 d5 2 Nf3 sidelines, including 2...Nf6 3 g3 and 2...Nf6 3 Bf4.} Nc6 $2 {[%emt 0:00:30]} (6... Nbd7 $11) 7. Qxc4 $2 {[%emt 0:00:30] [#]} (7. Ne5 $18 Nd5 8. Nc3 (8. Qxc4 Nxe5 9. dxe5 e6 $14)) 7... e6 {[%emt 0:00:30]} (7... Nxd4 $1 $11 8. Nc3 (8. Ne5 Bd5 $17) 8... e6 $1) 8. O-O $14 {[%emt 0:00:30] [#] White is slightly better.} Be7 $146 {[%emt 0:00:30]} ({Predecessor:} 8... Qd7 9. b3 O-O-O 10. e3 Bd6 11. Bb2 Rhe8 12. Nbd2 e5 13. Qc2 Nb4 14. Qd1 exd4 15. Bxd4 {0-1 (35) Platonova,A-Namzhilov,T Ulan-Ude 2012}) 9. Nc3 {[%emt 0:00:30]} O-O {[%emt 0:00:30]} 10. Rd1 {[%emt 0:00:30]} Rc8 {[%emt 0:12:30]} 11. Qa4 {[%emt 0:08:30]} a6 {[%emt 0:11:30]} 12. e4 {[%emt 0:09:30]} Na5 {[%emt 0:04:30]} 13. Qc2 {[%emt 0:07:30][%cal Od4d5]} Qe8 {[%emt 0:01:30]} 14. Bg5 {[%emt 0:09:30]} c5 {[%emt 0:08:30]} 15. d5 {[%emt 0:01:30] And now d6 would win.} exd5 {[%emt 0:02:13]} (15... h6 $14 16. Bxf6 Bxf6) 16. exd5 $16 {[%emt 0:01:30]} ({Resist} 16. Nxd5 $6 Rd8 $14) 16... Rd8 {[%emt 0:02:15]} (16... Qd7 $16) 17. Re1 $1 $18 {[%emt 0:02:30]} Qd7 {[%emt 0:01:25]} (17... Bxd5 $2 18. Bxf6 gxf6 19. Nxd5 Rxd5 20. Qe4 $18) 18. Rad1 {[%emt 0:02:30] Hoping for Ne5.} Qc7 {[%emt 0:04:57]} 19. d6 {[%emt 0:06:30]} Rxd6 {[%emt 0:02:33]} 20. Bf4 {[%emt 0:00:00]} Bxf3 {[%emt 0:00:21]} 21. Bxd6 {[%emt 0:02:00]} ({Better is} 21. Bxf3 $18 {Strongly threatening Qe2.} Rxd1 22. Qxd1 (22. Bxc7 Rxe1+ 23. Kg2 Re6 $11)) 21... Bxd1 $16 {[%emt 0:00:15]} 22. Bxc7 {[%emt 0:00:00] White is more active.} Bxc2 {[%emt 0:00:07]} 23. Rxe7 {[%emt 0:00:00]} Re8 {[%emt 0:04:24]} 24. Rxe8+ {[%emt 0:00:30]} Nxe8 {[%emt 0:00:03]} 25. Bxb6 {[%emt 0:03:30]} Nc4 {[%emt 0:00:06][%csl LRb2,LRb6]} 26. Bxc5 {[%emt 0:00:30] Threatens to win with b3.} Nxb2 {[%emt 0:00:04]} 27. Kf1 {[%emt 0:00:30]} Nc7 {[%emt 0:05:24]} 28. Ke2 {[%emt 0:00:30]} Ne6 {[%emt 0:00:08]} 29. Ba7 {[%emt 0:01:30] This bishop pair is nice.} Kf8 {[%emt 0:00:54] [#]} (29... Bg6 $16 {is a better defense.}) 30. Kd2 $1 $18 {[%emt 0:01:30]} Bf5 {[%emt 0:02:25] [#]} 31. Bf1 {[%emt 0:00:00] Prevents Nc4+.} a5 {[%emt 0:00:16]} 32. a4 $2 {[%emt 0:01:00]} (32. Bb6 $18) 32... Ng5 $2 {[%emt 0:00:09]} (32... Ke7 $16 {keeps fighting.}) 33. Bc5+ {[%emt 0:00:00]} Kg8 {[%emt 0:00:29]} 34. Ba3 {[%emt 0:03:00]} Nf3+ {[%emt 0:00:09]} 35. Ke3 {[%emt 0:00:30]} Nxh2 {[%emt 0:00:16]} 36. Be2 {[%emt 0:00:30]} ({And not} 36. Bxb2 Nxf1+ 37. Ke2 Nh2 $14) 36... Nxa4 {[%emt 0:01:40]} 37. Nxa4 {[%emt 0:00:00] Black must now prevent f3.} Ng4+ {[%emt 0:00:04]} 38. Kf4 {[%emt 0:00:00]} Bc2 {[%emt 0:00:05]} 39. Bxg4 {[%emt 0:00:30]} Bxa4 {[%emt 0:00:02]} 40. Ke5 {[%emt 0:00:30]} Bb3 {[%emt 0:02:27]} 41. Kd6 {[%emt 0:00:30]} g6 $2 {[%emt 0:00:19]} (41... a4 {might work better.} 42. Ke7 h6) 42. Ke7 {[%emt 0:00:30]} f5 {[%emt 0:00:53]} (42... a4 $142 43. Kf6 Kh8) 43. Be2 {[%emt 0:00:30] Kf6 is the strong threat.} Kg7 {[%emt 0:00:34]} 44. Bb2+ {[%emt 0:00:00]} Kg8 {[%emt 0:00:07]} 45. Kf6 {[%emt 0:00:00]} a4 {[%emt 0:00:44]} 46. f4 {[%emt 0:00:30]} Ba2 {[%emt 0:00:35]} 47. Ba3 {[%emt 0:00:30]} Bb3 {[%emt 0:00:05]} 48. Bb5 {[%emt 0:00:00]} Kh8 {[%emt 0:00:16]} 49. Kg5 $2 {[%emt 0:00:00]} (49. Bd7 Kg8 50. Bd6) 49... Kg7 {[%emt 0:01:13] White has a decisive advantage.} 50. Bb2+ {[%emt 0:00:30]} Kf7 {[%emt 0:00:31]} 51. Kh6 {[%emt 0:00:00]} Kg8 {[%emt 0:00:28]} 52. Bc6 {[%emt 0:00:00] Weighted Error Value: White=0.35/Black=0.38} 1-0

[Event "Marmaris Icmeler-IM May 2022"]
[Site "Icmeler"]
[Date "2022.05.07"]
[Round "5.3"]
[White "Taspinar, Yanki"]
[Black "Darban, Morteza"]
[Result "0-1"]
[ECO "B19"]
[WhiteElo "2176"]
[BlackElo "2279"]
[Annotator "TA"]
[PlyCount "118"]
[EventDate "2022.05.05"]
[EventType "schev"]
[EventCountry "TUR"]
[SourceTitle "playchess.com"]
[Source "ChessBase"]
[SourceQuality "1"]
[TimeControl "5400+30"]

{[%evp 26,117,6,-38,-37,-10,-15,-33,-24,-29,-29,-65,-66,-83,-102,-125,-117,-89,-100,-164,-193,-137,-101,-154,-159,-158,-157,-155,-150,-148,-142,-174,-175,-169,-143,-191,-183,-185,-176,-277,-267,-410,-383,-403,-400,-394,-391,-416,-412,-454,-461,-434,-445,-452,-352,-447,-420,-728,-714,-682,-121,-681,-721,-699,-670,-823,-813,-1725,-1579,-1652,-1011,-1411,-977,-1718,-1525,-1434,-931,-832,-690,-29979,-29980,-29980,-29981,-29965,-29967,-29982,-29983,-29982,-29982,-29990,-29991,-29997,-29998,-29999]} 1. e4 {[%emt 0:46:00]} c6 {[%emt 0:14:00]} 2. d4 {[%emt 0:00:30]} d5 {[%emt 0:00:30]} 3. Nc3 {[%emt 0:00:30][%cal Bb1c3,Bc3e4,Be4g3][%mdl 32]} dxe4 {[%emt 0:00:30]} 4. Nxe4 {[%emt 0:00:30]} Bf5 {[%emt 0:00:30]} 5. Ng3 {[%emt 0:00:30]} Bg6 {[%emt 0:00:30]} 6. Nf3 {[%emt 0:00:30]} Nd7 {[%emt 0:00:30]} 7. h4 {[%emt 0:00:30]} h6 {[%emt 0:00:30]} 8. h5 {[%emt 0:00:30]} Bh7 {[%emt 0:00:30]} 9. Bd3 {[%emt 0:00:30]} Bxd3 {[%emt 0:00:30]} 10. Qxd3 {[%emt 0:00:30]} e6 {[%emt 0:00:30]} 11. Bd2 {[%emt 0:00:30]} Ngf6 {[%emt 0:00:30]} 12. O-O-O {[%emt 0:00:30]} Qc7 {[%emt 0:00:30]} 13. Qe2 {[%emt 0:00:30]} c5 {[%emt 0:00:30] was the old line (13...0-0-0).} 14. Rh4 {[%emt 0:00:30]} Be7 {[%emt 0:00:30] B19: Classical Caro-Kann: 4...Bf5 main line.} 15. dxc5 {[%emt 0:00:30]} Nxc5 {[%emt 0:00:30]} 16. Rc4 {[%emt 0:00:30]} b5 $1 {[%emt 0:00:30] Black is slightly better.} 17. Rd4 {[%emt 0:00:30]} Qb7 {[%emt 0:00:30] [#]} 18. Bf4 $146 {[%emt 0:00:30]} ({Predecessor:} 18. Ne5 O-O 19. f3 Rfc8 20. Kb1 a5 21. Ng4 b4 22. Nxf6+ Bxf6 23. Rc4 Na4 24. Ne4 Be7 25. Bc1 Rxc4 26. Qxc4 Rc8 27. Qd3 Qc6 28. g4 {½-½ (29) Smikovski,I (2492)-Volzhin,A (2548) Samara 2000}) 18... O-O {[%emt 0:00:30]} 19. Be5 {[%emt 0:07:30]} Rfc8 {[%emt 0:08:30]} 20. Kb1 {[%emt 0:00:30]} a5 {[%emt 0:00:30]} 21. Nh2 {[%emt 0:06:30]} Ncd7 {[%emt 0:17:30]} (21... Qxg2 $2 22. Nf3 $18) 22. Bd6 {[%emt 0:04:30]} (22. Bf4 $17 {was necessary.}) 22... Bxd6 $19 {[%emt 0:01:30]} 23. Rxd6 {[%emt 0:00:30]} Nc5 {[%emt 0:14:30][%cal Bd7c5,Bc5a4,Ba4b6][%mdl 32]} ({Don't do} 23... Qxg2 24. Nf3 Rc4 25. Rg1 $16 (25. Rxd7 Nxd7 26. Rxd7 Rf4 $11)) 24. Qf3 {[%emt 0:12:03]} (24. R6d2 $142) 24... Qc7 $1 $17 {[%emt 0:03:30][%cal Oc5e4] White must now prevent ...Nce4!} 25. R6d2 {[%emt 0:03:38]} b4 {[%emt 0:01:30]} 26. Ng4 {[%emt 0:01:05]} Nxg4 {[%emt 0:06:30]} 27. Qxg4 {[%emt 0:00:02]} Na4 {[%emt 0:00:30][%cal Oa4c3] ...Nc3+! is the strong threat.} 28. Ka1 {[%emt 0:09:09]} Qe5 {[%emt 0:07:30][%csl Ga4][%cal Re5b2]} 29. Rb1 {[%emt 0:00:53]} Rd8 {[%emt 0:03:03]} 30. Qd1 {[%emt 0:00:50]} (30. Qe4 $17 Qg5 31. Rxd8+ Rxd8 32. Qf3) 30... Rxd2 $19 {[%emt 0:04:29]} 31. Qxd2 {[%emt 0:00:02] [#]} Rc8 $1 {[%emt 0:00:48]} 32. Qd7 {[%emt 0:01:13]} (32. f4 $142 Qf6 33. Ne4) 32... Nb6 {[%emt 0:00:37]} 33. Qb7 {[%emt 0:00:20]} (33. Qd3 $142) 33... Qd4 {[%emt 0:00:34]} 34. Qe4 {[%emt 0:03:20]} Qxf2 {[%emt 0:01:19]} 35. Ne2 {[%emt 0:00:15]} Rd8 {[%emt 0:05:17][%cal Bc8d8,Bd8d2,Bd2c2][%mdl 32]} 36. Nc1 {[%emt 0:00:57]} Rd2 {[%emt 0:01:52]} 37. Nb3 {[%emt 0:00:19]} Rxc2 {[%emt 0:01:08]} 38. Nxa5 {[%emt 0:00:13]} Nd5 {[%emt 0:00:08][%cal Od5c3] Threatens to win with ...Nc3!} 39. Nb3 {[%emt 0:00:47]} Ne3 {[%emt 0:04:17]} 40. Qa8+ {[%emt 0:00:24]} Kh7 {[%emt 0:00:02] And now ...Rc4 would win. Active counter play!} 41. Qe4+ {[%emt 0:00:40]} (41. Qf3 $142) 41... f5 {[%emt 0:00:01]} 42. Qf3 {[%emt 0:00:41] [#]} Rd2 $2 {[%emt 0:01:38]} 43. Rc1 $2 {[%emt 0:00:26][%mdl 8192] Loses the game.} (43. a4 $17 bxa3 44. Nxd2 Qxd2 45. Qg3) 43... Rxb2 {[%emt 0:00:45]} 44. Qxf2 {[%emt 0:00:09]} Rxf2 {[%emt 0:00:02][%mdl 4096] Endgame KRN-KRN} 45. Nd4 {[%emt 0:00:29]} e5 {[%emt 0:01:18][%cal Be6e5,Be5e4,Be4e3,Be3e2][%mdl 32]} 46. Ne6 {[%emt 0:00:43]} Nc2+ {[%emt 0:00:50]} 47. Kb1 {[%emt 0:00:04]} Na3+ {[%emt 0:00:04]} 48. Ka1 {[%emt 0:00:02]} Kg8 {[%emt 0:00:59] aiming for ...e4.} 49. Nc5 {[%emt 0:00:09]} e4 {[%emt 0:00:31]} 50. Na6 {[%emt 0:00:27]} Nc2+ {[%emt 0:00:12]} 51. Kb1 {[%emt 0:00:05] [#]} e3 $1 {[%emt 0:00:40][%cal Oe3e2] ( -> ...e2!)} 52. Nc5 {[%emt 0:00:08]} (52. Rxc2 e2) 52... Na3+ {[%emt 0:00:24] Black mates.} 53. Ka1 {[%emt 0:00:00]} Rxg2 {[%emt 0:00:41]} 54. Nd3 {[%emt 0:00:12]} Rd2 {[%emt 0:00:26]} 55. Ne1 {[%emt 0:00:15]} e2 {[%emt 0:00:32]} 56. Nf3 {[%emt 0:00:14]} Rd3 {[%emt 0:00:35]} 57. Rc8+ {[%emt 0:01:14]} Kh7 {[%emt 0:00:02]} 58. Ne1 {[%emt 0:00:05]} Rd1+ {[%emt 0:00:15]} 59. Kb2 {[%emt 0:00:04]} Rb1# {[%emt 0:00:01] Weighted Error Value: White=0.85/Black=0.33} 0-1

[Event "Marmaris Icmeler-IM May 2022"]
[Site "Icmeler"]
[Date "2022.05.07"]
[Round "5.4"]
[White "Kilic, Eray"]
[Black "Odeev, Handszar"]
[Result "0-1"]
[ECO "C41"]
[WhiteElo "2192"]
[BlackElo "2305"]
[Annotator "TA"]
[PlyCount "96"]
[EventDate "2022.05.05"]
[EventType "schev"]
[EventCountry "TUR"]
[SourceTitle "playchess.com"]
[Source "ChessBase"]
[SourceQuality "1"]
[TimeControl "5400+30"]

{[%evp 17,96,12,44,-7,-5,-22,0,0,-6,-57,-55,-64,-52,-61,-66,-118,-125,-120,-128,-135,-145,-134,-117,-141,-156,-162,-176,-232,-169,-253,-255,-271,-260,-262,-268,-286,-309,-300,-297,-295,-282,-332,-302,-372,-354,-508,-507,-640,-638,-621,-627,-680,-641,-625,-619,-691,-680,-720,-713,-2057,-2142,-1929,-1760,-1495,-1743,-5700,-5420,-4994,-2589,-5014,-5074,-29962,-29965,-12515,-5824,-29981,-29982,-29988,-29989,-29991,-29992]} 1. e4 {[%emt 0:04:00]} e5 {[%emt 0:49:00]} 2. Nf3 {[%emt 0:00:30]} d6 {[%emt 0:00:30]} 3. d4 {[%emt 0:00:30]} exd4 {[%emt 0:00:30]} 4. Nxd4 {[%emt 0:00:30]} Nf6 {[%emt 0:00:30]} 5. Nc3 {[%emt 0:00:30]} Be7 {[%emt 0:00:30]} 6. Be2 {[%emt 0:00:30]} O-O {[%emt 0:00:30]} 7. O-O {[%emt 0:00:30]} Re8 {[%emt 0:00:30]} 8. f4 {[%emt 0:00:30]} Bf8 {[%emt 0:00:30]} 9. Bf3 {[%emt 0:00:30]} c6 {[%emt 0:00:30]} 10. Nb3 {[%emt 0:00:30] [#] C41: Philidor Defence.} (10. Re1 $14) 10... a5 $146 {[%emt 0:01:30]} ({Predecessor:} 10... Nbd7 11. Be3 Qc7 12. Qe2 Nb6 13. Rad1 Be6 14. Nd2 Rad8 15. f5 Bc8 16. Bf4 Nbd7 17. Nc4 Ne5 18. Kh1 b5 {½-½ (18) Woinowski,M (1731)-Rollwitz,J (1987) Berlin 2014}) 11. Re1 {[%emt 0:08:30]} a4 {[%emt 0:00:30]} 12. Nd4 {[%emt 0:04:30] The position is equal.} a3 {[%emt 0:02:30]} 13. Nb3 {[%emt 0:00:30]} (13. b3 $11) 13... axb2 $15 {[%emt 0:00:30]} 14. Bxb2 {[%emt 0:00:30]} Nbd7 {[%emt 0:00:30][%cal Bb8d7,Bd7b6,Bb6c4,Bc4a3,Ba3c2][%mdl 32]} 15. Kh1 {[%emt 0:00:30][%cal Oe4e5]} Nb6 {[%emt 0:06:30]} 16. e5 {[%emt 0:05:30]} (16. Qd3 $15) 16... dxe5 $17 {[%emt 0:04:30]} 17. fxe5 {[%emt 0:08:30] [#] Threatens to win with Qxd8.} Qxd1 {[%emt 0:02:30]} 18. Nxd1 {[%emt 0:00:30]} Nc4 {[%emt 0:07:30]} 19. Bc3 {[%emt 0:06:30]} Nd7 {[%emt 0:02:21][%cal Rd7e5] Black is more active.} 20. Nb2 {[%emt 0:14:30]} Na3 {[%emt 0:02:31]} ({Weaker is} 20... Ncxe5 21. Nc4 f6 22. a4 $15) 21. Rad1 {[%emt 0:10:30]} Nxc2 {[%emt 0:05:32]} 22. Re4 {[%emt 0:03:30]} (22. Re2 $142 Na3 23. Nd3) 22... Nb6 {[%emt 0:06:23] Strongly threatening ...Nd5.} 23. Rd2 {[%emt 0:01:30]} (23. Rc1 $142) 23... Na3 $19 {[%emt 0:00:04] Hoping for ...Nb1.} 24. Bb4 {[%emt 0:04:30]} Bf5 {[%emt 0:04:40]} 25. Rf4 {[%emt 0:00:30]} Rxe5 {[%emt 0:00:11][%cal Re5e1] [#]} 26. g4 {[%emt 0:00:30]} Be6 {[%emt 0:00:22]} 27. Bxf8 {[%emt 0:01:30]} Kxf8 {[%emt 0:00:07]} ({Avoid the trap} 27... Rxf8 $2 28. Kg1 $19) ({But not} 27... Re1+ $2 28. Kg2 Kxf8 29. Nc5 Bxa2 30. Kf2 $19) 28. Nd3 {[%emt 0:00:30] Prevents Re1+.} Re3 {[%emt 0:00:25]} 29. Ndc5 {[%emt 0:01:30]} Bd5 {[%emt 0:00:19]} 30. Bxd5 {[%emt 0:01:30]} Nxd5 {[%emt 0:00:03]} 31. Rf1 {[%emt 0:00:00]} (31. Re4 $142) 31... b6 {[%emt 0:00:39]} 32. Nb7 {[%emt 0:01:00]} Nc4 {[%emt 0:00:35] Prevents Nd6.} 33. Rc2 {[%emt 0:00:30]} Re4 {[%emt 0:00:30]} 34. Nd2 {[%emt 0:03:25]} Nxd2 {[%emt 0:00:07]} 35. Rxd2 {[%emt 0:00:01]} Re6 {[%emt 0:00:41] Prevents Nd6.} 36. Rb1 {[%emt 0:00:01]} Ke7 {[%emt 0:00:46]} 37. Rc1 {[%emt 0:01:45]} Rb8 {[%emt 0:01:12]} 38. Rxd5 {[%emt 0:00:08]} cxd5 {[%emt 0:00:02][%mdl 4096] Endgame KRR-KRN} 39. Rc7+ {[%emt 0:00:00]} Ke8 {[%emt 0:00:03]} 40. Kg2 {[%emt 0:00:12]} d4 {[%emt 0:00:10][%cal Ob8b7] White must now prevent ...Rxb7!} 41. Rc4 {[%emt 0:00:05]} Rxb7 {[%emt 0:00:10]} 42. Rxd4 {[%emt 0:00:01]} Re2+ {[%emt 0:00:14]} 43. Kg3 {[%emt 0:00:22]} Rxa2 {[%emt 0:00:07]} 44. h4 {[%emt 0:00:30]} b5 {[%emt 0:00:05][%cal Bb6b5,Bb5b4,Bb4b3,Bb3b2][%mdl 32]} 45. Re4+ {[%emt 0:00:00]} Kd7 {[%emt 0:00:13] ( -> ...b4)} 46. h5 {[%emt 0:00:00]} b4 {[%emt 0:00:06] Black mates.} 47. g5 {[%emt 0:00:30]} b3 {[%emt 0:00:07]} 48. Rf4 {[%emt 0:00:00]} b2 {[%emt 0:00:28] Black took control after the opening.  Weighted Error Value: White=0.44/Black=0.07 (flawless)} 0-1